bitfinex/quotes_SOLUSD_20250822
["timestamp","ask_amount","ask_price","bid_price","bid_amount"]
[1755885850531,13.59559401,197.4,197.37,5.39591031]
[1755885850736,13.59559401,197.4,197.39,5.39591031]
[1755885851039,13.59559401,197.4,197.36,0.03]
[1755885851040,13.59559401,197.39,197.36,0.03]
[1755885852268,13.59559401,197.39,197.38,5.39591031]
[1755885852570,13.59559401,197.41,197.38,5.39591031]
[1755885852861,13.59559401,197.41,197.39,5.39591031]
[1755885853466,14.16559401,197.4,197.39,5.39591031]
[1755885853667,14.16559401,197.4,197.36,0.03]
[1755885854074,14.16559401,197.4,197.39,5.39591031]
[1755885855067,13.59559401,197.4,197.39,5.39591031]
[1755885855561,14.16559401,197.4,197.36,0.03]
[1755885855766,14.16559401,197.4,197.39,5.39591031]
[1755885856071,0.06,197.43,197.39,6.08591031]
[1755885856272,0.06,197.43,197.37,26.69]
[1755885856485,13.59559401,197.41,197.37,26.0]
[1755885856675,14.16559401,197.41,197.39,5.39591031]
[1755885856867,13.59559401,197.41,197.36,0.03]
[1755885857093,14.16559401,197.41,197.39,5.39591031]
[1755885857287,14.16559401,197.41,197.4,5.39591031]
[1755885857592,14.16559401,197.41,197.39,5.39591031]
[1755885857776,14.16559401,197.4,197.39,5.39591031]
[1755885857976,13.59559401,197.4,197.39,5.39591031]
[1755885858278,14.16559401,197.4,197.38,5.39591031]
[1755885858497,13.59559401,197.4,197.36,0.03]
[1755885858671,13.59559401,197.4,197.38,5.39591031]
[1755885858886,14.16559401,197.4,197.38,5.39591031]
[1755885859103,13.59559401,197.4,197.36,0.03]
[1755885859271,14.16559401,197.4,197.36,0.03]
[1755885859603,14.16559401,197.4,197.37,5.39591031]
[1755885859890,14.16559401,197.4,197.36,0.03]
[1755885860102,14.16559401,197.4,197.38,5.39591031]
[1755885860396,13.59559401,197.4,197.38,5.39591031]
[1755885860622,13.59559401,197.4,197.36,0.03]
[1755885860771,0.06,197.43,197.37,0.69]
[1755885860961,0.06,197.43,197.42,5.39591031]
[1755885862004,0.06,197.43,197.42,9.17908293]
[1755885862163,14.22559401,197.43,197.42,3.78317262]
[1755885863197,13.59559401,197.42,197.36,0.03]
[1755885863494,14.16559401,197.42,197.38,5.39591031]
[1755885863710,13.59559401,197.4,197.36,0.03]
[1755885863867,13.59559401,197.38,197.36,0.03]
[1755885864579,14.16559401,197.37,197.36,0.03]
[1755885864779,19.56150432,197.37,197.36,0.03]
[1755885864981,19.84582746,197.37,197.36,0.03]
[1755885865280,19.27582746,197.36,197.35,0.03]
[1755885865508,19.84582746,197.36,197.35,0.03]
[1755885865804,13.59559401,197.36,197.35,0.03]
[1755885865976,56.06559401,197.36,197.35,0.03]
[1755885866788,55.49559401,197.36,197.35,0.03]
[1755885867184,13.59559401,197.38,197.35,6.12591031]
[1755885867494,0.06,197.43,197.35,6.12591031]
[1755885867495,42.24,197.41,197.37,5.39591031]
[1755885867811,42.24,197.41,197.38,3.78010104]
[1755885867812,13.59559401,197.4,197.38,3.78010104]
[1755885868012,13.59559401,197.4,197.39,9.17601135]
[1755885868374,13.59559401,197.4,197.39,12.28149455]
[1755885868574,16.23836755,197.4,197.39,12.28149455]
[1755885868770,16.23836755,197.4,197.39,12.98149455]
[1755885868997,13.59559401,197.41,197.39,12.98149455]
[1755885869199,13.59559401,197.41,197.4,12.28149455]
[1755885869499,13.59559401,197.41,197.4,12.98149455]
[1755885869709,13.65559401,197.43,197.4,12.98149455]
[1755885869919,13.65559401,197.43,197.42,8.50139351]
[1755885870227,13.65559401,197.43,197.42,12.98149455]
[1755885870387,13.65559401,197.43,197.42,12.28149455]
[1755885870587,13.65559401,197.43,197.42,3.78010104]
[1755885871012,13.65559401,197.43,197.42,12.28149455]
[1755885871191,13.65559401,197.43,197.42,12.98149455]
[1755885871586,55.91559401,197.43,197.42,12.98149455]
[1755885871990,13.65559401,197.43,197.42,12.98149455]
[1755885872822,0.06,197.43,197.42,12.98149455]
[1755885873124,0.06,197.45,197.44,26.0]
[1755885873287,0.06,197.47,197.44,20.78058592]
[1755885873488,1.92135235,197.5,197.49,26.0]
[1755885873686,42.36,197.58,197.5,26.0]
[1755885873883,45.00029522,197.58,197.57,8.50139351]
[1755885874082,45.00029522,197.58,197.57,3.7777989]
[1755885874083,59.31588923,197.58,197.57,3.7777989]
[1755885874282,13.59559401,197.57,197.55,8.50139351]
[1755885874503,13.59559401,197.57,197.56,3.76960222]
[1755885874704,2.64029522,197.58,197.56,3.76960222]
[1755885874931,2.64029522,197.58,197.57,3.76960222]
[1755885875084,2.64029522,197.58,197.57,12.27099573]
[1755885875285,42.38,197.59,197.57,12.97099573]
[1755885875609,55.97559401,197.59,197.58,3.76960222]
[1755885875789,13.59559401,197.58,197.56,8.50139351]
[1755885875984,13.59559401,197.58,197.47,0.7]
[1755885876217,0.72,197.57,197.47,35.20139351]
[1755885876385,13.59559401,197.59,197.5,26.0]
[1755885876589,28.6400764,197.61,197.51,4.46460159]
[1755885876590,42.82,197.56,197.51,4.46460159]
[1755885876785,56.41559401,197.58,197.55,8.50139351]
[1755885877089,56.41559401,197.58,197.57,8.50139351]
[1755885877511,13.59559401,197.57,197.54,0.7]
[1755885877711,13.59559401,197.57,197.56,8.50139351]
[1755885877915,13.59559401,197.57,197.53,0.7]
[1755885878119,13.59559401,197.57,197.54,3.76056981]
[1755885878306,13.59559401,197.57,197.56,8.50139351]
[1755885878508,13.59559401,197.57,197.48,0.28432314]
[1755885878698,13.59559401,197.57,197.5,0.7]
[1755885879023,13.59559401,197.57,197.55,8.50139351]
[1755885879615,13.59559401,197.57,197.51,0.7]
[1755885879829,13.59559401,197.57,197.55,8.50139351]
[1755885880234,13.59559401,197.59,197.56,8.50139351]
[1755885880403,13.59559401,197.57,197.56,8.50139351]
[1755885880598,0.06,197.6,197.56,9.20139351]
[1755885880913,13.59559401,197.59,197.54,0.7]
[1755885881112,13.59559401,197.59,197.58,8.50139351]
[1755885881497,13.59559401,197.59,197.51,0.28432314]
[1755885881705,14.31559401,197.59,197.52,3.75249686]
[1755885881932,14.31559401,197.59,197.55,8.50139351]
[1755885882104,13.59559401,197.57,197.51,0.7]
[1755885882308,13.59559401,197.57,197.55,8.50139351]
[1755885882309,42.74,197.56,197.55,8.50139351]
[1755885882498,13.59559401,197.55,197.51,0.7]
[1755885882703,13.59559401,197.55,197.54,8.50139351]
[1755885883726,13.65559401,197.6,197.54,8.50139351]
[1755885884038,13.59559401,197.56,197.52,0.7]
[1755885884529,13.59559401,197.56,197.53,0.7]
[1755885884830,0.72,197.55,197.49,0.7]
[1755885885038,13.59559401,197.53,197.51,8.50139351]
[1755885885539,13.59559401,197.53,197.52,8.50139351]
[1755885886111,13.59559401,197.53,197.47,86.9]
[1755885886112,13.59559401,197.53,197.47,26.0]
[1755885886337,13.59559401,197.53,197.52,8.50139351]
[1755885886535,13.59559401,197.53,197.47,26.0]
[1755885886741,14.31559401,197.53,197.51,8.50139351]
[1755885886913,14.31559401,197.53,197.47,26.0]
[1755885886914,13.59559401,197.53,197.47,26.0]
[1755885887347,13.59559401,197.53,197.51,8.50139351]
[1755885888135,13.59559401,197.55,197.52,9.20139351]
[1755885888337,13.59559401,197.55,197.54,8.50139351]
[1755885889633,13.59559401,197.55,197.47,34.50139351]
[1755885889634,22.81698752,197.55,197.47,26.0]
[1755885889836,13.59559401,197.53,197.45,0.7]
[1755885890047,13.59559401,197.51,197.48,8.50139351]
[1755885890214,14.31559401,197.51,197.48,8.50139351]
[1755885890415,14.31559401,197.51,197.47,8.50139351]
[1755885890610,14.31559401,197.51,197.48,8.50139351]
[1755885890823,13.59559401,197.51,197.49,8.50139351]
[1755885891146,13.59559401,197.58,197.5,9.20139351]
[1755885891441,13.59559401,197.56,197.55,8.50139351]
[1755885891739,42.62,197.56,197.55,8.50139351]
[1755885892038,13.59559401,197.55,197.49,0.7]
[1755885892210,13.59559401,197.55,197.53,8.50139351]
[1755885892749,13.59559401,197.55,197.51,0.7]
[1755885893047,13.59559401,197.54,197.52,0.7]
[1755885893227,13.59559401,197.54,197.47,8.50139351]
[1755885893434,13.59559401,197.54,197.5,26.0]
[1755885893745,13.59559401,197.54,197.51,0.7]
[1755885894124,13.59559401,197.54,197.5,26.0]
[1755885894326,13.59559401,197.54,197.53,8.50139351]
[1755885894619,13.59559401,197.56,197.51,0.7]
[1755885894825,0.06,197.6,197.52,0.7]
[1755885894826,13.59559401,197.54,197.52,0.7]
[1755885895144,13.59559401,197.54,197.53,8.50139351]
[1755885895359,13.59559401,197.54,197.52,0.7]
[1755885895515,13.59559401,197.54,197.53,8.50139351]
[1755885895715,0.06,197.6,197.53,9.20139351]
[1755885895936,56.39559401,197.6,197.59,8.50139351]
[1755885896156,59.75560348,197.6,197.54,0.7]
[1755885896321,59.75560348,197.6,197.59,8.50139351]
[1755885896521,59.75560348,197.6,197.52,0.7]
[1755885896740,13.59559401,197.59,197.57,8.50139351]
[1755885896957,14.26559401,197.59,197.58,8.50139351]
[1755885897259,14.26559401,197.59,197.52,0.7]
[1755885897455,14.26559401,197.59,197.58,8.50139351]
[1755885897756,13.59559401,197.59,197.58,8.50139351]
[1755885898140,16.29560348,197.6,197.54,0.72]
[1755885898347,16.29560348,197.6,197.59,8.50139351]
[1755885898527,59.05560348,197.6,197.55,0.72]
[1755885898850,59.72560348,197.6,197.59,8.50139351]
[1755885899161,59.03560348,197.6,197.59,8.50139351]
[1755885899457,16.29560348,197.6,197.59,8.50139351]
[1755885899919,13.65559401,197.6,197.59,8.50139351]
[1755885900332,13.59559401,197.59,197.58,8.50139351]
[1755885900553,0.67,197.59,197.58,8.50139351]
[1755885900747,13.65559401,197.6,197.58,8.50139351]
[1755885900935,13.65559401,197.6,197.53,26.72]
[1755885901136,13.65559401,197.6,197.53,26.0]
[1755885901323,13.65559401,197.6,197.54,0.72]
[1755885901525,13.65559401,197.6,197.59,8.50139351]
[1755885904053,0.06,197.6,197.59,8.50139351]
[1755885904559,0.06,197.6,197.59,9.22139351]
[1755885905227,0.06,197.6,197.59,0.72]
[1755885905558,0.06,197.6,197.59,8.50139351]
[1755885907058,0.06,197.6,197.59,9.22139351]
[1755885907241,0.06,197.6,197.56,0.72]
[1755885907833,0.06,197.6,197.59,8.50139351]
[1755885908072,0.06,197.6,197.54,0.72]
[1755885908237,13.59559401,197.58,197.54,0.72]
[1755885908434,13.59559401,197.58,197.56,8.50139351]
[1755885908632,13.59559401,197.56,197.52,0.72]
[1755885908837,13.59559401,197.56,197.55,8.50139351]
[1755885909050,56.13559401,197.56,197.52,0.72]
[1755885909264,56.13559401,197.56,197.55,8.50139351]
[1755885909562,56.13559401,197.56,197.5,26.72]
[1755885909728,56.13559401,197.56,197.55,8.50139351]
[1755885910165,56.13559401,197.56,197.51,0.72]
[1755885910330,56.13559401,197.56,197.55,8.50139351]
[1755885910943,13.59559401,197.56,197.55,8.50139351]
[1755885911236,13.65559401,197.6,197.55,8.50139351]
[1755885911431,13.59559401,197.58,197.53,0.72]
[1755885911851,13.59559401,197.58,197.57,8.50139351]
[1755885912239,13.59559401,197.58,197.54,0.72]
[1755885912447,13.59559401,197.58,197.57,8.50139351]
[1755885912659,13.59559401,197.58,197.56,8.50139351]
[1755885913069,42.52,197.57,197.56,8.50139351]
[1755885913254,56.11559401,197.57,197.56,8.50139351]
[1755885913937,13.59559401,197.56,197.52,0.72]
[1755885914258,13.59559401,197.56,197.55,8.50139351]
[1755885914465,13.59559401,197.56,197.55,5.38623474]
[1755885915591,13.59559401,197.56,197.52,0.72]
[1755885915798,0.06,197.6,197.55,5.38623474]
[1755885915991,13.59559401,197.58,197.55,0.72]
[1755885916160,13.59559401,197.58,197.57,5.38623474]
[1755885918297,13.59559401,197.59,197.57,6.10623474]
[1755885918485,13.59559401,197.59,197.58,5.38623474]
[1755885919162,13.59559401,197.59,197.58,6.10623474]
[1755885919387,0.06,197.6,197.58,6.10623474]
[1755885919388,13.65559401,197.6,197.58,6.10623474]
[1755885919661,0.06,197.6,197.59,6.10623474]
[1755885920488,0.06,197.6,197.59,17.67805268]
[1755885920782,0.06,197.6,197.59,9.19902634]
[1755885920989,2.63926316,197.65,197.64,26.0]
[1755885921284,0.67,197.78,197.64,26.72]
[1755885921285,0.67,197.74,197.64,26.72]
[1755885921488,0.67,197.74,197.7,8.47902634]
[1755885921788,22.07462035,197.72,197.66,8.47902634]
[1755885921956,13.59559401,197.7,197.68,8.47902634]
[1755885922156,2.63777322,197.77,197.69,9.19902634]
[1755885922459,2.63777322,197.77,197.75,8.47902634]
[1755885922987,3.30777322,197.77,197.7,0.72]
[1755885923162,16.90336723,197.77,197.76,8.47902634]
[1755885923361,16.23336723,197.77,197.76,12.22918372]
[1755885923961,2.63777322,197.77,197.76,12.22918372]
[1755885924461,2.63777322,197.77,197.76,3.75015738]
[1755885924666,3.30777322,197.77,197.76,3.75015738]
[1755885924885,59.16336723,197.77,197.76,3.75015738]
[1755885925195,13.59559401,197.76,197.68,26.0]
[1755885925367,13.59559401,197.76,197.74,8.47902634]
[1755885925563,13.59559401,197.74,197.6,8.47902634]
[1755885925863,13.59559401,197.7,197.61,0.72]
[1755885926070,13.59559401,197.68,197.59,0.72]
[1755885926281,13.59559401,197.68,197.62,8.47902634]
[1755885926282,13.59559401,197.66,197.62,8.47902634]
[1755885926593,13.59559401,197.64,197.62,8.47902634]
[1755885926999,14.28559401,197.64,197.62,8.47902634]
[1755885927668,13.30271465,197.64,197.57,0.72]
[1755885927869,8.47902634,197.61,197.52,8.479026]
[1755885928071,42.95,197.6,197.55,8.47902634]
[1755885928369,42.95,197.59,197.49,0.69]
[1755885928687,42.26,197.59,197.5,26.03]
[1755885928885,42.26,197.59,197.51,0.69]
[1755885929085,42.26,197.59,197.58,8.47902634]
[1755885929287,42.95,197.59,197.57,8.47902634]
[1755885929598,14.28559401,197.58,197.57,8.47902634]
[1755885930028,14.28559401,197.58,197.51,0.69]
[1755885930527,13.59559401,197.58,197.57,8.47902634]
[1755885930711,13.59559401,197.62,197.57,9.16902634]
[1755885930906,13.59559401,197.62,197.61,8.47902634]
[1755885931106,13.59559401,197.64,197.61,8.47902634]
[1755885931309,13.59559401,197.64,197.58,0.69]
[1755885931596,14.28559401,197.64,197.58,0.69]
[1755885931909,14.28559401,197.64,197.56,0.69]
[1755885932425,14.28559401,197.64,197.62,8.47902634]
[1755885932630,14.28559401,197.63,197.62,8.47902634]
[1755885932926,13.59559401,197.63,197.56,0.69]
[1755885933105,13.59559401,197.63,197.62,8.47902634]
[1755885935239,13.59559401,197.62,197.55,0.69]
[1755885935602,0.69,197.63,197.55,0.69]
[1755885935801,13.59559401,197.64,197.55,0.69]
[1755885936703,13.59559401,197.64,197.63,8.47902634]
[1755885936910,14.28559401,197.64,197.62,8.47902634]
[1755885937221,0.69,197.63,197.56,26.0]
[1755885937442,0.69,197.63,197.59,8.47902634]
[1755885937848,0.69,197.62,197.59,8.47902634]
[1755885938161,13.59559401,197.6,197.59,8.47902634]
[1755885938334,22.76462035,197.6,197.5,0.03]
[1755885938520,8.47902634,197.57,197.5,0.03]
[1755885938721,13.59559401,197.55,197.5,0.03]
[1755885938949,13.59559401,197.53,197.5,0.03]
[1755885939321,13.59559401,197.51,197.5,0.03]
[1755885940040,13.59559401,197.51,197.5,8.50902634]
[1755885940927,13.59559401,197.51,197.5,0.03]
[1755885941130,56.42559401,197.51,197.5,0.03]
[1755885941736,59.067134,197.51,197.5,0.03]
[1755885942875,67.83048348,197.51,197.5,0.03]
[1755885944058,67.83048348,197.51,197.5,8.50902634]
[1755885944059,16.237134,197.51,197.5,8.50902634]
[1755885944268,58.297134,197.51,197.5,8.50902634]
[1755885944451,44.70153999,197.51,197.5,9.19902634]
[1755885944767,42.06,197.51,197.5,0.03]
[1755885944988,42.06,197.51,197.5,8.50902634]
[1755885945186,55.65559401,197.51,197.5,0.03]
[1755885945387,55.65559401,197.51,197.5,8.50902634]
[1755885945756,55.65559401,197.51,197.5,9.19902634]
[1755885946069,13.59559401,197.51,197.5,9.19902634]
[1755885946659,13.59559401,197.51,197.5,8.50902634]
[1755885947587,13.59559401,197.51,197.5,0.03]
[1755885947588,56.34559401,197.51,197.5,0.03]
[1755885947884,55.65559401,197.51,197.5,8.50902634]
[1755885949075,55.65559401,197.51,197.5,9.19902634]
[1755885949586,42.06,197.51,197.5,9.19902634]
[1755885949786,13.59559401,197.53,197.5,9.19902634]
[1755885949985,13.59559401,197.53,197.52,8.47902634]
[1755885950287,13.59559401,197.57,197.52,9.16902634]
[1755885950467,41.96,197.58,197.56,8.47902634]
[1755885950674,41.96,197.59,197.57,9.16902634]
[1755885950990,55.55559401,197.59,197.58,8.47902634]
[1755885951156,55.55559401,197.59,197.58,9.16902634]
[1755885951357,41.96,197.59,197.58,8.47902634]
[1755885951586,13.59559401,197.6,197.58,8.47902634]
[1755885951766,14.28559401,197.6,197.59,8.47902634]
[1755885951963,13.59559401,197.6,197.59,8.47902634]
[1755885952184,13.59559401,197.6,197.53,0.69]
[1755885952385,13.59559401,197.6,197.59,8.47902634]
[1755885953070,13.59559401,197.6,197.5,0.03]
[1755885953256,0.69,197.59,197.5,26.72]
[1755885953455,13.59559401,197.57,197.5,0.03]
[1755885953689,13.59559401,197.57,197.53,8.47902634]
[1755885953982,0.69,197.56,197.53,8.47902634]
[1755885954189,13.59559401,197.54,197.53,8.47902634]
[1755885955106,14.28559401,197.54,197.5,0.03]
[1755885955287,13.59559401,197.52,197.5,0.03]
[1755885955493,55.47559401,197.51,197.5,0.03]
[1755885955689,56.16559401,197.51,197.5,0.03]
[1755885956507,64.64462035,197.51,197.5,0.03]
[1755885957101,64.65462035,197.51,197.5,0.03]
[1755885959390,56.17559401,197.51,197.5,0.03]
[1755885960507,63.95462035,197.51,197.5,0.03]
[1755885960682,13.59559401,197.51,197.5,8.50902634]
[1755885960888,55.37559401,197.51,197.5,8.50902634]
[1755885961286,56.07559401,197.51,197.5,0.03]
[1755885961510,64.55462035,197.51,197.5,0.03]
[1755885962207,55.37559401,197.51,197.5,0.03]
[1755885962511,64.55462035,197.51,197.5,0.03]
[1755885963102,56.07559401,197.51,197.5,0.03]
[1755885963306,55.37559401,197.51,197.5,0.03]
[1755885963505,13.59559401,197.51,197.5,8.50902634]
[1755885963736,55.37559401,197.51,197.5,8.50902634]
[1755885964123,55.37559401,197.51,197.5,9.18902634]
[1755885964605,0.7,197.6,197.5,9.18902634]
[1755885964809,2.63984838,197.61,197.58,8.47902634]
[1755885965005,2.63984838,197.61,197.6,8.47902634]
[1755885965211,44.41984838,197.61,197.6,8.47902634]
[1755885965423,58.01544239,197.61,197.6,8.47902634]
[1755885965580,44.41984838,197.61,197.6,8.47902634]
[1755885965787,2.63984838,197.61,197.6,9.15902634]
[1755885965982,41.76,197.63,197.6,9.15902634]
[1755885966288,41.76,197.63,197.58,0.68]
[1755885966289,13.59559401,197.62,197.58,0.68]
[1755885966495,13.59559401,197.62,197.61,8.47902634]
[1755885966882,13.59559401,197.62,197.56,0.68]
[1755885967087,13.59559401,197.6,197.58,8.47902634]
[1755885967312,41.74,197.59,197.58,8.47902634]
[1755885969322,13.59559401,197.6,197.58,8.47902634]
[1755885969506,13.59559401,197.6,197.59,8.47902634]
[1755885969710,13.59559401,197.6,197.59,9.15902634]
[1755885969918,41.72,197.61,197.59,9.15902634]
[1755885970127,55.31559401,197.61,197.6,8.47902634]
[1755885970432,13.59559401,197.61,197.6,8.47902634]
[1755885971713,41.66,197.63,197.6,8.47902634]
[1755885972202,41.66,197.63,197.62,8.47902634]
[1755885973005,41.66,197.63,197.62,9.15902634]
[1755885973317,2.69935635,197.64,197.62,9.15902634]
[1755885973543,2.69935635,197.64,197.63,9.15902634]
[1755885973899,2.69935635,197.64,197.63,8.47902634]
[1755885974228,13.59559401,197.63,197.59,0.68]
[1755885974530,13.59559401,197.63,197.6,0.68]
[1755885974714,13.59559401,197.63,197.61,0.68]
[1755885974916,2.69935635,197.64,197.55,26.28432314]
[1755885975108,2.69935635,197.64,197.62,0.68]
[1755885975312,13.59559401,197.63,197.57,0.68]
[1755885975505,2.69935635,197.64,197.62,8.47902634]
[1755885975723,0.06,197.64,197.63,9.15902634]
[1755885976104,0.06,197.64,197.63,8.47902634]
[1755885979704,0.06,197.64,197.63,9.15902634]
[1755885981206,0.06,197.64,197.63,0.68]
[1755885981410,13.59559401,197.65,197.63,9.15902634]
[1755885981609,13.59559401,197.65,197.64,9.15902634]
[1755885981810,13.59559401,197.65,197.64,8.47902634]
[1755885982405,13.59559401,197.65,197.61,0.03]
[1755885982808,13.59559401,197.65,197.64,8.47902634]
[1755885983542,2.6390861,197.66,197.64,9.15902634]
[1755885983836,0.28432314,197.64,197.61,0.03]
[1755885984042,22.35894349,197.62,197.61,0.03]
[1755885984226,63.81894349,197.62,197.61,0.03]
[1755885984421,64.51894349,197.62,197.61,0.03]
[1755885984828,55.75559401,197.62,197.61,0.03]
[1755885985147,56.03991715,197.62,197.61,0.03]
[1755885985362,55.33991715,197.62,197.61,0.03]
[1755885985543,13.59559401,197.62,197.61,8.50902634]
[1755885985709,13.59559401,197.62,197.61,0.03]
[1755885987554,13.59559401,197.62,197.61,8.50902634]
[1755885988142,13.59559401,197.62,197.61,0.03]
[1755885988849,14.29559401,197.62,197.61,0.03]
[1755885989012,23.05894349,197.62,197.61,0.03]
[1755885989910,14.29559401,197.62,197.61,0.03]
[1755885990308,14.57991715,197.62,197.61,0.03]
[1755885990854,23.05894349,197.62,197.61,0.03]
[1755885991017,14.57991715,197.62,197.61,0.03]
[1755885991212,23.05894349,197.62,197.61,0.03]
[1755885991651,14.57991715,197.62,197.61,0.03]
[1755885991818,23.05894349,197.62,197.61,0.03]
[1755885992021,14.57991715,197.62,197.61,0.03]
[1755885992440,55.99991715,197.62,197.61,0.03]
[1755885992843,55.29991715,197.62,197.61,0.03]
[1755885994348,55.01559401,197.62,197.61,0.03]
[1755885994514,55.01559401,197.62,197.61,8.50902634]
[1755885995141,55.01559401,197.62,197.61,9.16902634]
[1755885996260,13.59559401,197.62,197.61,9.16902634]
[1755885997119,44.01914873,197.64,197.61,9.16902634]
[1755885997335,16.23474274,197.64,197.63,8.47902634]
[1755885998166,16.23474274,197.64,197.61,0.69]
[1755885998167,13.59559401,197.63,197.61,0.03]
[1755885998367,13.59559401,197.63,197.62,8.47902634]
[1755885999068,13.59559401,197.63,197.61,0.03]
[1755885999356,13.59559401,197.63,197.62,8.47902634]
[1755886001765,44.01914873,197.64,197.62,9.13902634]
[1755886002067,16.23474274,197.64,197.62,0.66]
[1755886002362,13.59559401,197.63,197.61,0.03]
[1755886002655,13.59559401,197.63,197.62,8.47902634]
[1755886003453,13.59559401,197.63,197.61,0.03]
[1755886003454,14.29559401,197.63,197.61,0.03]
[1755886003777,55.65559401,197.62,197.61,0.03]
[1755886004148,13.59559401,197.62,197.61,8.50902634]
[1755886004341,54.93559401,197.62,197.61,8.50902634]
[1755886004978,55.63559401,197.62,197.61,0.03]
[1755886005886,55.91991715,197.62,197.61,0.03]
[1755886006497,64.39894349,197.62,197.61,0.03]
[1755886006883,55.91991715,197.62,197.61,0.03]
[1755886007088,64.39894349,197.62,197.61,0.03]
[1755886007695,39.87991715,197.6,197.59,0.03]
[1755886007897,72.09796983,197.6,197.59,0.03]
[1755886008092,39.87991715,197.51,197.5,0.03]
[1755886008300,0.28432314,197.49,197.43,8.47902634]
[1755886008508,13.87991715,197.47,197.41,8.57902634]
[1755886008684,23.05894349,197.47,197.41,0.1]
[1755886009399,23.05894349,197.47,197.42,8.47902634]
[1755886011614,14.57991715,197.47,197.42,8.47902634]
[1755886011789,13.87991715,197.47,197.44,8.47902634]
[1755886011987,13.87991715,197.47,197.41,0.1]
[1755886011988,23.05894349,197.47,197.41,0.1]
[1755886012187,0.14216157,197.46,197.41,0.1]
[1755886012393,13.59559401,197.42,197.41,0.1]
[1755886012593,55.17991715,197.42,197.41,0.1]
[1755886012792,13.87991715,197.42,197.41,0.1]
[1755886013006,55.15991715,197.42,197.41,0.1]
[1755886013204,54.87559401,197.42,197.41,0.1]
[1755886013414,54.87559401,197.42,197.41,8.57902634]
[1755886013600,54.87559401,197.42,197.41,9.23902634]
[1755886014223,54.85559401,197.42,197.41,9.23902634]
[1755886014419,13.59559401,197.41,197.4,0.03]
[1755886014601,22.35894349,197.41,197.4,0.03]
[1755886014803,25.08883449,197.41,197.4,0.03]
[1755886014997,0.28432314,197.4,197.38,0.03]
[1755886015197,63.61894349,197.39,197.38,0.03]
[1755886015392,89.61894349,197.39,197.38,0.03]
[1755886015917,90.31894349,197.39,197.38,0.03]
[1755886016095,39.87991715,197.36,197.35,0.03]
[1755886016417,89.61894349,197.36,197.35,0.03]
[1755886016616,90.31894349,197.36,197.35,0.03]
[1755886017117,92.9633611,197.36,197.35,0.03]
[1755886018016,94.9938691,197.36,197.35,0.03]
[1755886019908,86.51484276,197.36,197.35,0.03]
[1755886020111,94.9938691,197.36,197.35,0.03]
[1755886020408,94.9938691,197.36,197.16,0.1]
[1755886020409,10.0,197.27,197.16,0.1]
[1755886020594,26.0,197.21,197.16,0.1]
[1755886020796,63.57894349,197.2,197.16,0.1]
[1755886021024,65.61068949,197.2,197.16,0.1]
[1755886021497,66.26068949,197.2,197.16,0.1]
[1755886022018,65.63068949,197.2,197.16,0.1]
[1755886022222,57.15166315,197.2,197.16,0.1]
[1755886022434,83.13166315,197.2,197.16,0.1]
[1755886022723,91.61068949,197.2,197.16,0.1]
[1755886023234,0.28432314,197.19,197.16,0.1]
[1755886023395,49.00894349,197.19,197.16,0.1]
[1755886023589,48.35894349,197.19,197.16,0.1]
[1755886023794,39.87991715,197.19,197.16,0.77]
[1755886024032,81.09991715,197.19,197.16,0.1]
[1755886024221,89.57894349,197.19,197.16,0.1]
[1755886024413,89.57894349,197.19,197.16,0.77]
[1755886024611,81.09991715,197.19,197.16,0.1]
[1755886024939,63.55894349,197.19,197.16,0.1]
[1755886025298,13.59559401,197.19,197.18,0.77]
[1755886025644,54.79559401,197.19,197.18,0.77]
[1755886026130,8.579027,197.25,197.18,9.24902634]
[1755886026428,0.28432314,197.22,197.19,0.67]
[1755886026614,13.59559401,197.2,197.18,8.57902634]
[1755886026814,41.32,197.19,197.18,8.57902634]
[1755886027023,41.32,197.19,197.18,0.1]
[1755886027024,63.53678192,197.19,197.18,0.1]
[1755886027333,55.19991715,197.19,197.18,0.1]
[1755886028442,55.19991715,197.19,197.18,0.77]
[1755886028641,54.91559401,197.19,197.18,9.24902634]
[1755886028945,54.91559401,197.19,197.18,0.77]
[1755886030633,55.19991715,197.19,197.18,0.1]